fUSD/lending_fUSD_20250506
["ID","MTS","AMOUNT","RATE_DAILY","PERIOD"]
[360039871,1746509432262,-123.59783304,0.0001975,2]
[360039872,1746509432273,-300.0,0.0001975,2]
[360039873,1746509432284,-339.44976473,0.0001975,2]
[360039874,1746509432295,-4321.53997574,0.0001975,2]
[360039875,1746509432305,-317.1902,0.00019886,2]
[360039876,1746509432315,-207.4,0.00019887,2]
[360039877,1746509432324,-200.0,0.00019892,2]
[360039878,1746509432333,-300.0,0.00019897,2]
[360039879,1746509432343,-1200.0,0.00019897,2]
[360039880,1746509432353,-300.0,0.00019897,2]
[360039881,1746509432362,-160.16430628,0.00019898,2]
[360039882,1746509432371,-198.75994355,0.00019898,2]
[360039883,1746509432381,-160.16430621,0.00019898,2]
[360039884,1746509432390,-160.16430621,0.00019899,2]
[360039885,1746509432399,-160.16430621,0.00019899,2]
[360039886,1746509432410,-5894.40322597,0.00019899,2]
[360039887,1746509432445,-489.38511936,0.00019899,2]
[360039893,1746509432565,-749.55447525,0.00019899,2]
[360039902,1746509432640,-350.0,0.00019899,2]
[360039904,1746509432652,-1401.841098,0.00019899,2]
[360039995,1746509438182,-3229.23732841,0.00019899,2]
[360039996,1746509440346,-362.89,0.00019899,2]
[360039997,1746509440404,-596.76669111,0.00019899,2]
[360039998,1746509440416,-24347.13481204,0.00019899,2]
[360039999,1746509440425,-396.20716013,0.00019899,2]
[360040000,1746509440434,-396.20716012,0.00019899,2]
[360040001,1746509440444,-160.16430621,0.00019899,2]
[360040002,1746509440453,-396.20716012,0.00019899,2]
[360040003,1746509440463,-396.20716012,0.00019899,2]
[360040004,1746509440472,-160.16430621,0.00019899,2]
[360040005,1746509440481,-396.20716012,0.00019899,2]
[360040006,1746509440491,-396.20716012,0.000199,2]
[360040007,1746509440500,-396.20716012,0.000199,2]
[360040008,1746509440509,-160.16430621,0.000199,2]
[360040009,1746509440519,-396.20716012,0.000199,2]
[360040010,1746509440528,-396.20716012,0.000199,2]
[360040011,1746509440537,-251.3395985,0.000199,2]
[360040012,1746509440547,-5778.04095956,0.000199,2]
[360040013,1746509440555,-160.16430621,0.000199,2]
[360040014,1746509440565,-2280.17024533,0.000199,2]
[360040015,1746509440573,-1000.0,0.000199,2]
[360040016,1746509440583,-396.20716012,0.000199,2]
[360040017,1746509440592,-500.0,0.00019973,2]
[360040018,1746509440601,-687.9249312,0.00019986,2]
[360040019,1746509440611,-29710.0226855,0.00019986,2]
[360040020,1746509440620,-4359.5200267,0.00019986,2]
[360040021,1746509440630,-450.0,0.00019996,2]
[360040022,1746509440639,-450.0,0.00019996,2]
[360040023,1746509440648,-550.380169,0.00019996,2]
[360040024,1746509440658,-450.0,0.00019996,2]
[360040025,1746509440667,-545.79,0.00019996,2]
[360040026,1746509440677,-450.0,0.00019996,2]
[360040027,1746509440686,-485.36469276,0.00019996,2]
[360040028,1746509440695,-450.0,0.00019996,2]
[360040029,1746509440705,-450.0,0.00019996,2]
[360040030,1746509440714,-450.0,0.00019996,2]
[360040031,1746509440723,-329.95236561,0.00019996,2]
[360040032,1746509440732,-450.0,0.00019996,2]
[360040033,1746509440741,-1742.642,0.00019997,2]
[360040034,1746509440750,-502.36455062,0.00019997,2]
[360040035,1746509440760,-154.74785113,0.00019997,2]
[360040036,1746509440769,-450.0,0.00019997,2]
[360040037,1746509440779,-234.83685557,0.00019997,2]
[360040038,1746509440788,-450.0,0.00019997,2]
[360040039,1746509440798,-450.0,0.00019997,2]
[360040040,1746509440809,-450.0,0.00019997,2]
[360040041,1746509440819,-423.11338859,0.00019997,2]
[360040042,1746509440828,-450.0,0.00019997,2]
[360040043,1746509440838,-450.0,0.00019997,2]
[360040044,1746509440847,-450.0,0.00019997,2]
[360040045,1746509440856,-388.25,0.00019997,2]
[360040046,1746509440866,-450.0,0.00019997,2]
[360040047,1746509440875,-450.0,0.00019997,2]
[360040048,1746509440886,-450.0,0.00019997,2]
[360040049,1746509440895,-450.0,0.00019997,2]
[360040050,1746509440905,-450.0,0.00019997,2]
[360040051,1746509440915,-297.47,0.00019997,2]
[360040052,1746509440925,-450.0,0.00019997,2]
[360040053,1746509440935,-450.0,0.00019997,2]
[360040054,1746509440945,-450.0,0.00019997,2]
[360040055,1746509440954,-183.23719913,0.00019997,2]
[360040056,1746509440966,-450.0,0.00019997,2]
[360040057,1746509440975,-450.0,0.00019997,2]
[360040058,1746509440985,-450.0,0.00019997,2]
[360040059,1746509440994,-15604.06,0.00019997,2]
[360040060,1746509441003,-15604.06,0.00019997,2]
[360040061,1746509441013,-160.07,0.00019997,2]
[360040062,1746509441022,-168.098,0.00019998,2]
[360040063,1746509441031,-165.25,0.00019998,2]
[360040064,1746509441042,-450.0,0.00019998,2]
[360040065,1746509441052,-259.71,0.00019998,2]
[360040066,1746509441061,-450.0,0.00019998,2]
[360040067,1746509441070,-450.0,0.00019998,2]
[360040068,1746509441080,-450.0,0.00019998,2]
[360040069,1746509441090,-450.0,0.00019998,2]
[360040070,1746509441100,-177.49,0.00019998,2]
[360040071,1746509441109,-450.0,0.00019998,2]
[360040072,1746509441119,-450.0,0.00019998,2]
[360040073,1746509441129,-450.0,0.00019998,2]
[360040074,1746509441138,-450.0,0.00019998,2]
[360040075,1746509441147,-407.50164798,0.00019998,2]
[360040076,1746509441156,-482.79145534,0.00019998,2]
[360040077,1746509441165,-150.0,0.00019998,2]
[360040078,1746509441174,-500.0,0.00019998,2]
[360040079,1746509441184,-151.87572901,0.00019998,2]
[360040080,1746509441194,-152.04642897,0.00019998,2]
[360040081,1746509441203,-500.0,0.00019998,2]
[360040082,1746509441213,-450.0,0.00019998,2]
[360040083,1746509441222,-150.0,0.00019998,2]
[360040084,1746509441231,-450.0,0.00019998,2]
[360040085,1746509441240,-325.89008284,0.00019998,2]
[360040086,1746509441249,-425.0,0.00019998,2]
[360040087,1746509441258,-450.0,0.00019998,2]
[360040088,1746509441267,-427.55567073,0.00019998,2]
[360040089,1746509441276,-450.0,0.00019998,2]
[360040090,1746509441286,-196.49,0.00019998,2]
[360040091,1746509441295,-454.48,0.00019998,2]
[360040092,1746509441304,-379.57941728,0.00019998,2]
[360040093,1746509441313,-450.0,0.00019998,2]
[360040094,1746509441323,-450.0,0.00019998,2]
[360040095,1746509441332,-450.0,0.00019998,2]
[360040096,1746509441342,-450.0,0.00019998,2]
[360040097,1746509441351,-172.31,0.00019998,2]
[360040098,1746509441360,-450.0,0.00019998,2]
[360040099,1746509441369,-450.0,0.00019998,2]
[360040100,1746509441379,-450.0,0.00019998,2]
[360040101,1746509441388,-450.0,0.00019998,2]
[360040102,1746509441397,-450.0,0.00019998,2]
[360040103,1746509441407,-351.47631248,0.00019998,2]
[360040104,1746509441416,-450.0,0.00019998,2]
[360040105,1746509441424,-450.0,0.00019998,2]
[360040106,1746509441434,-450.0,0.00019998,2]
[360040107,1746509441443,-450.0,0.00019998,2]
[360040108,1746509441452,-450.0,0.00019998,2]
[360040109,1746509441461,-450.0,0.00019998,2]
[360040110,1746509441471,-450.0,0.00019998,2]
[360040111,1746509441480,-450.0,0.00019998,2]
[360040112,1746509441489,-229.0,0.00019998,2]
[360040113,1746509441499,-450.0,0.00019998,2]
[360040114,1746509441508,-450.0,0.00019998,2]
[360040115,1746509441516,-498.05788944,0.00019998,2]
[360040116,1746509441525,-450.0,0.00019998,2]
[360040117,1746509441535,-450.0,0.00019998,2]
[360040118,1746509441544,-450.0,0.00019998,2]
[360040119,1746509441553,-311.01,0.00019998,2]
[360040120,1746509441563,-367.79,0.00019998,2]
[360040121,1746509441572,-527.69362067,0.00019998,2]
[360040122,1746509441581,-450.0,0.00019998,2]
[360040123,1746509441590,-450.0,0.00019998,2]
[360040124,1746509441599,-450.0,0.00019998,2]
[360040125,1746509441609,-450.0,0.00019998,2]
[360040126,1746509441618,-450.0,0.00019998,2]
[360040127,1746509441628,-450.0,0.00019998,2]
[360040128,1746509441638,-481.7447211,0.00019998,2]
[360040129,1746509441648,-166.01937314,0.00019998,2]
[360040130,1746509441657,-450.0,0.00019998,2]
[360040131,1746509441667,-450.0,0.00019998,2]
[360040132,1746509441676,-450.0,0.00019998,2]
[360040133,1746509441686,-450.0,0.00019998,2]
[360040134,1746509441695,-474.92020839,0.00019998,2]
[360040135,1746509441705,-450.0,0.00019998,2]
[360040136,1746509441714,-595.98502792,0.00019998,2]
[360040137,1746509441723,-450.0,0.00019998,2]
[360040138,1746509441732,-553.17600041,0.00019998,2]
[360040139,1746509441741,-450.0,0.00019998,2]
[360040140,1746509441750,-450.0,0.00019998,2]
[360040141,1746509441760,-450.0,0.00019998,2]
[360040142,1746509441769,-450.0,0.00019998,2]
[360040143,1746509441778,-450.0,0.00019998,2]
[360040144,1746509441788,-450.0,0.00019998,2]
[360040145,1746509441797,-561.76,0.00019998,2]
[360040146,1746509441806,-3097.86,0.00019998,2]
[360040147,1746509441815,-3097.86,0.00019998,2]
[360040148,1746509441824,-3097.86,0.00019998,2]
[360040149,1746509441834,-3097.86,0.00019998,2]
[360040150,1746509441843,-450.0,0.00019998,2]
[360040151,1746509441853,-450.0,0.00019998,2]
[360040152,1746509441863,-450.0,0.00019998,2]
[360040153,1746509441873,-238.0,0.00019998,2]
[360040154,1746509441882,-693.96,0.00019998,2]
[360040155,1746509441891,-693.96,0.00019998,2]
[360040156,1746509441900,-693.96,0.00019998,2]
[360040157,1746509441910,-693.96,0.00019998,2]
[360040158,1746509441919,-450.0,0.00019998,2]
[360040159,1746509441928,-450.0,0.00019998,2]
[360040160,1746509441937,-450.0,0.00019998,2]
[360040161,1746509441947,-450.0,0.00019998,2]
[360040162,1746509441956,-569.32,0.00019998,2]
[360040163,1746509441965,-450.0,0.00019998,2]
[360040164,1746509441974,-450.0,0.00019998,2]
[360040165,1746509441984,-450.0,0.00019998,2]
[360040166,1746509441993,-450.0,0.00019998,2]
[360040167,1746509442002,-504.79604291,0.00019998,2]
[360040168,1746509442011,-450.0,0.00019998,2]
[360040169,1746509442021,-450.0,0.00019998,2]
[360040170,1746509442030,-450.0,0.00019998,2]
[360040171,1746509442042,-450.0,0.00019998,2]
[360040172,1746509442052,-450.0,0.00019998,2]
[360040173,1746509442061,-450.0,0.00019998,2]
[360040174,1746509442070,-450.0,0.00019998,2]
[360040175,1746509442079,-570.55,0.00019998,2]
[360040176,1746509442088,-450.0,0.00019998,2]
[360040177,1746509442098,-450.0,0.00019998,2]
[360040178,1746509442107,-150.0,0.00019998,2]
[360040179,1746509442116,-208.95514916,0.00019998,2]
[360040180,1746509442125,-156.71932039,0.00019998,2]
[360040181,1746509442135,-500.0,0.00019998,2]
[360040182,1746509442144,-500.0,0.00019998,2]
[360040183,1746509442153,-283.82816254,0.00019998,2]
[360040184,1746509442162,-1291.14,0.00019998,2]
[360040185,1746509442171,-1291.14,0.00019998,2]
[360040186,1746509442180,-1291.14,0.00019998,2]
[360040187,1746509442190,-150.0,0.00019998,2]
[360040188,1746509442199,-1291.14,0.00019998,2]
[360040189,1746509442208,-15604.06,0.00019998,2]
[360040190,1746509442218,-15604.06,0.00019998,2]
[360040191,1746509442227,-157.79426251,0.00019998,2]
[360040192,1746509442237,-500.0,0.00019998,2]
[360040193,1746509442246,-237.78249065,0.00019998,2]
[360040194,1746509442256,-466.68812596,0.00019998,2]
[360040195,1746509442266,-500.0,0.00019998,2]
[360040196,1746509442275,-485.77,0.00019998,2]
[360040197,1746509442285,-450.0,0.00019998,2]
[360040198,1746509442295,-450.0,0.00019998,2]
[360040199,1746509442304,-451.09674577,0.00019998,2]
[360040200,1746509442314,-894.0,0.00019999,2]
[360040201,1746509442324,-669.89624627,0.00019999,2]
[360040202,1746509442333,-377.98337964,0.00019999,2]
[360040203,1746509442343,-500.0,0.00019999,2]
[360040204,1746509442352,-300.0,0.00019999,2]
[360040205,1746509442362,-153.831246,0.00019999,2]
[360040206,1746509442371,-223.619805,0.00019999,2]
[360040207,1746509442381,-151.0,0.00019999,2]
[360040208,1746509442391,-151.0,0.00019999,2]
[360040209,1746509442400,-166.267079,0.00019999,2]
[360040210,1746509442409,-151.0,0.00019999,2]
[360040211,1746509442422,-151.0,0.00019999,2]
[360040212,1746509442432,-151.0,0.00019999,2]
[360040213,1746509442442,-151.0,0.00019999,2]
[360040214,1746509442452,-151.0,0.00019999,2]
[360040215,1746509442460,-151.0,0.00019999,2]
[360040216,1746509442469,-151.0,0.00019999,2]
[360040217,1746509442478,-151.0,0.00019999,2]
[360040218,1746509442487,-152.40257,0.00019999,2]
[360040219,1746509442497,-151.0,0.00019999,2]
[360040220,1746509442506,-236.855518,0.00019999,2]
[360040221,1746509442515,-236.855518,0.00019999,2]
[360040222,1746509442525,-151.0,0.00019999,2]
[360040223,1746509442534,-151.0,0.00019999,2]
[360040225,1746509442544,-155.428262,0.00019999,2]
[360040227,1746509442553,-157.862322,0.00019999,2]
[360040228,1746509442563,-450.0,0.00019999,2]
[360040229,1746509442572,-157.862322,0.00019999,2]
[360040230,1746509442582,-157.602835,0.00019999,2]
[360040231,1746509442592,-476.4026156,0.00019999,2]
[360040232,1746509442602,-151.0,0.00019999,2]
[360040233,1746509442612,-151.0,0.00019999,2]
[360040234,1746509442621,-151.0,0.00019999,2]
[360040235,1746509442631,-151.0,0.00019999,2]
[360040236,1746509442641,-151.0,0.00019999,2]
[360040237,1746509442651,-151.0,0.00019999,2]
[360040238,1746509442660,-151.0,0.00019999,2]
[360040239,1746509442669,-151.0,0.00019999,2]
[360040240,1746509442679,-151.0,0.00019999,2]
[360040241,1746509442689,-151.0,0.00019999,2]
[360040242,1746509442698,-151.0,0.00019999,2]
[360040243,1746509442708,-151.0,0.00019999,2]
[360040244,1746509442718,-450.0,0.00019999,2]
[360040245,1746509442727,-450.0,0.00019999,2]
[360040246,1746509442737,-450.0,0.00019999,2]
[360040247,1746509442746,-557.35,0.00019999,2]
[360040248,1746509442757,-151.0,0.00019999,2]
[360040249,1746509442766,-151.0,0.00019999,2]
[360040250,1746509442776,-388.44666048,0.00019999,2]
[360040251,1746509442785,-456.63069503,0.00019999,2]
[360040252,1746509442795,-151.0,0.00019999,2]
[360040253,1746509442804,-167.040254,0.00019999,2]
[360040254,1746509442815,-459.33486415,0.00019999,2]
[360040255,1746509442824,-151.0,0.00019999,2]
[360040256,1746509442833,-151.0,0.00019999,2]
[360040257,1746509442843,-151.0,0.00019999,2]
[360040258,1746509442853,-151.0,0.00019999,2]
[360040259,1746509442863,-151.0,0.00019999,2]
[360040260,1746509442873,-151.0,0.00019999,2]
[360040261,1746509442883,-151.0,0.00019999,2]
[360040262,1746509442892,-151.0,0.00019999,2]
[360040263,1746509442902,-450.0,0.00019999,2]
[360040264,1746509442911,-450.0,0.00019999,2]
[360040265,1746509442920,-151.0,0.00019999,2]
[360040266,1746509442930,-474.45,0.00019999,2]
[360040267,1746509442940,-151.0,0.00019999,2]
[360040268,1746509442949,-151.0,0.00019999,2]
[360040269,1746509442958,-151.0,0.00019999,2]
[360040270,1746509442967,-151.0,0.00019999,2]
[360040271,1746509442976,-151.0,0.00019999,2]
[360040272,1746509442985,-151.0,0.00019999,2]
[360040273,1746509442995,-158.39,0.00019999,2]
[360040274,1746509443004,-151.0,0.00019999,2]
[360040275,1746509443013,-1048.566392,0.00019999,2]
[360040276,1746509443023,-1048.566392,0.00019999,2]
[360040278,1746509443032,-286.027763,0.00019999,2]
[360040279,1746509443044,-286.027763,0.00019999,2]
[360040280,1746509443053,-286.027763,0.00019999,2]
[360040281,1746509443063,-286.027763,0.00019999,2]
[360040282,1746509443072,-173.428891,0.00019999,2]
[360040283,1746509443081,-173.428891,0.00019999,2]
[360040284,1746509443090,-173.428891,0.00019999,2]
[360040285,1746509443099,-173.428891,0.00019999,2]
[360040286,1746509443109,-151.0,0.00019999,2]
[360040287,1746509443119,-400.0,0.00019999,2]
[360040288,1746509443129,-151.0,0.00019999,2]
[360040289,1746509443138,-255.340991,0.00019999,2]
[360040290,1746509443147,-517.537369,0.00019999,2]
[360040291,1746509443157,-517.537369,0.00019999,2]
[360040292,1746509443167,-517.537369,0.00019999,2]
[360040294,1746509443176,-517.537369,0.00019999,2]
[360040296,1746509443185,-802.661627,0.00019999,2]
[360040298,1746509443194,-802.661627,0.00019999,2]
[360040300,1746509443203,-151.0,0.00019999,2]
[360040303,1746509443213,-151.0,0.00019999,2]
[360040305,1746509443222,-257.666988,0.00019999,2]
[360040307,1746509443231,-802.661627,0.00019999,2]
[360040309,1746509443239,-802.661627,0.00019999,2]
[360040311,1746509443249,-450.0,0.00019999,2]
[360040313,1746509443258,-450.0,0.00019999,2]
[360040315,1746509443267,-450.0,0.00019999,2]
[360040317,1746509443277,-450.0,0.00019999,2]
[360040319,1746509443286,-450.0,0.00019999,2]
[360040320,1746509443296,-308.44375254,0.00019999,2]
[360040321,1746509443305,-151.0,0.00019999,2]
[360040322,1746509443315,-151.0,0.00019999,2]
[360040323,1746509443324,-151.0,0.00019999,2]
[360040324,1746509443333,-151.0,0.00019999,2]
[360040325,1746509443342,-151.0,0.00019999,2]
[360040326,1746509443352,-151.360372,0.00019999,2]
[360040327,1746509443361,-151.0,0.00019999,2]
[360040328,1746509443371,-151.0,0.00019999,2]
[360040329,1746509443380,-171.73,0.00019999,2]
[360040330,1746509443389,-151.564757,0.00019999,2]
[360040331,1746509443536,-450.0,0.00019999,2]
[360040332,1746509443547,-151.0,0.00019999,2]
[360040333,1746509443556,-151.0,0.00019999,2]
[360040334,1746509443565,-450.0,0.00019999,2]
[360040335,1746509443575,-450.0,0.00019999,2]
[360040336,1746509443584,-450.0,0.00019999,2]
[360040337,1746509443594,-450.0,0.00019999,2]
[360040338,1746509443603,-450.0,0.00019999,2]
[360040339,1746509443612,-450.0,0.00019999,2]
[360040340,1746509443622,-450.0,0.00019999,2]
[360040341,1746509443632,-151.0,0.00019999,2]
[360040342,1746509443642,-450.0,0.00019999,2]
[360040343,1746509443651,-450.0,0.00019999,2]
[360040344,1746509443661,-151.0,0.00019999,2]
[360040345,1746509443671,-450.0,0.00019999,2]
[360040346,1746509443680,-450.0,0.00019999,2]
[360040347,1746509443690,-450.0,0.00019999,2]
[360040348,1746509443699,-443.01493922,0.00019999,2]
[360040349,1746509443709,-450.0,0.00019999,2]
[360040350,1746509443719,-450.0,0.00019999,2]
[360040351,1746509443728,-450.0,0.00019999,2]
[360040352,1746509443738,-450.0,0.00019999,2]
[360040353,1746509443747,-450.0,0.00019999,2]
[360040354,1746509443757,-450.0,0.00019999,2]
[360040355,1746509443766,-450.0,0.00019999,2]
[360040356,1746509443775,-450.0,0.00019999,2]
[360040358,1746509443784,-450.0,0.00019999,2]
[360040359,1746509443793,-450.0,0.00019999,2]
[360040360,1746509443802,-450.0,0.00019999,2]
[360040362,1746509443812,-450.0,0.00019999,2]
[360040363,1746509443822,-450.0,0.00019999,2]
[360040364,1746509443831,-157.39,0.00019999,2]
[360040365,1746509443841,-450.0,0.00019999,2]
[360040366,1746509443850,-302.19,0.00019999,2]
[360040367,1746509443860,-151.0,0.00019999,2]
[360040369,1746509443870,-151.0,0.00019999,2]
[360040371,1746509443879,-151.0,0.00019999,2]
[360040373,1746509443889,-151.0,0.00019999,2]
[360040375,1746509443898,-151.0,0.00019999,2]
[360040376,1746509443908,-151.0,0.00019999,2]
[360040377,1746509443918,-450.0,0.00019999,2]
[360040378,1746509443928,-450.0,0.00019999,2]
[360040379,1746509443938,-450.0,0.00019999,2]
[360040380,1746509443948,-450.0,0.00019999,2]
[360040381,1746509443958,-237.44,0.00019999,2]
[360040382,1746509443968,-3097.86,0.00019999,2]
[360040383,1746509443977,-3097.86,0.00019999,2]
[360040384,1746509443987,-151.0,0.00019999,2]
[360040385,1746509443996,-3097.86,0.00019999,2]
[360040386,1746509444006,-151.0,0.00019999,2]
[360040387,1746509444015,-3097.86,0.00019999,2]
[360040388,1746509444025,-3097.86,0.00019999,2]
[360040389,1746509444035,-3097.86,0.00019999,2]
[360040390,1746509444048,-3097.86,0.00019999,2]
[360040391,1746509444057,-3097.86,0.00019999,2]
[360040392,1746509444067,-3097.86,0.00019999,2]
[360040393,1746509444076,-151.0,0.00019999,2]
[360040394,1746509444087,-3097.86,0.00019999,2]
[360040395,1746509444097,-151.0,0.00019999,2]
[360040396,1746509444106,-3097.86,0.00019999,2]
[360040397,1746509444116,-3097.86,0.00019999,2]
[360040398,1746509444126,-3097.86,0.00019999,2]
[360040399,1746509444136,-3097.86,0.00019999,2]
[360040400,1746509444145,-3097.86,0.00019999,2]
[360040401,1746509444154,-3097.86,0.00019999,2]
[360040402,1746509444163,-3097.86,0.00019999,2]
[360040403,1746509444172,-413.19,0.00019999,2]
[360040404,1746509444182,-3097.86,0.00019999,2]
[360040405,1746509444191,-3097.86,0.00019999,2]
[360040406,1746509444201,-3098.00002207,0.00019999,2]
[360040407,1746509444210,-693.96,0.00019999,2]
[360040408,1746509444219,-693.96,0.00019999,2]
[360040409,1746509444228,-693.96,0.00019999,2]
[360040410,1746509444237,-693.96,0.00019999,2]
[360040411,1746509444247,-693.96,0.00019999,2]
[360040412,1746509444257,-693.96,0.00019999,2]
[360040413,1746509444266,-693.96,0.00019999,2]
[360040414,1746509444275,-693.96,0.00019999,2]
[360040415,1746509444285,-693.96,0.00019999,2]
[360040416,1746509444295,-693.96,0.00019999,2]
[360040417,1746509444304,-693.96,0.00019999,2]
[360040418,1746509444313,-450.0,0.00019999,2]
[360040419,1746509444323,-450.0,0.00019999,2]
[360040420,1746509444332,-450.0,0.00019999,2]
[360040421,1746509444341,-693.96,0.00019999,2]
[360040422,1746509444350,-450.0,0.00019999,2]
[360040423,1746509444360,-693.96,0.00019999,2]
[360040424,1746509444369,-693.96,0.00019999,2]
[360040425,1746509444378,-450.0,0.00019999,2]
[360040426,1746509444387,-693.96,0.00019999,2]
[360040427,1746509444396,-450.0,0.00019999,2]
[360040428,1746509444406,-693.96,0.00019999,2]
[360040429,1746509444415,-450.0,0.00019999,2]
[360040430,1746509444424,-693.96,0.00019999,2]
[360040431,1746509444434,-450.0,0.00019999,2]
[360040432,1746509444443,-693.96,0.00019999,2]
[360040433,1746509444453,-450.0,0.00019999,2]
[360040434,1746509444462,-693.96,0.00019999,2]
[360040435,1746509444472,-450.0,0.00019999,2]
[360040436,1746509444482,-694.13,0.00019999,2]
[360040437,1746509444491,-450.0,0.00019999,2]
[360040438,1746509444500,-423.72,0.00019999,2]
[360040439,1746509444509,-450.0,0.00019999,2]
[360040440,1746509444518,-450.0,0.00019999,2]
[360040441,1746509444527,-450.0,0.00019999,2]
[360040442,1746509444536,-450.0,0.00019999,2]
[360040443,1746509444545,-256.81,0.00019999,2]
[360040444,1746509444555,-194.49763439,0.00019999,2]
[360040445,1746509444564,-151.0,0.00019999,2]
[360040446,1746509444574,-151.0,0.00019999,2]
[360040447,1746509444583,-450.0,0.00019999,2]
[360040448,1746509444592,-450.0,0.00019999,2]
[360040449,1746509444602,-450.0,0.00019999,2]
[360040450,1746509444612,-450.0,0.00019999,2]
[360040451,1746509444621,-450.0,0.00019999,2]
[360040452,1746509444631,-450.0,0.00019999,2]
[360040453,1746509444640,-450.0,0.00019999,2]
[360040454,1746509444650,-450.0,0.00019999,2]
[360040455,1746509444659,-450.0,0.00019999,2]
[360040456,1746509444668,-450.0,0.00019999,2]
[360040457,1746509444677,-450.0,0.00019999,2]
[360040458,1746509444687,-198.53,0.00019999,2]
[360040459,1746509444696,-151.0,0.00019999,2]
[360040460,1746509444706,-151.0,0.00019999,2]
[360040461,1746509444715,-151.0,0.00019999,2]
[360040462,1746509444724,-151.0,0.00019999,2]
[360040463,1746509444733,-151.0,0.00019999,2]
[360040464,1746509444743,-228.547064,0.00019999,2]
[360040465,1746509444752,-450.0,0.00019999,2]
[360040466,1746509444761,-580.44,0.00019999,2]
[360040467,1746509444771,-151.0,0.00019999,2]
[360040468,1746509444781,-1291.14,0.00019999,2]
[360040469,1746509444790,-170.478352,0.00019999,2]
[360040470,1746509444799,-1291.14,0.00019999,2]
[360040471,1746509444809,-1291.14,0.00019999,2]
[360040472,1746509444819,-1291.14,0.00019999,2]
[360040473,1746509444828,-1291.14,0.00019999,2]
[360040474,1746509444838,-1291.14,0.00019999,2]
[360040475,1746509444846,-15604.06,0.00019999,2]
[360040476,1746509444855,-15604.06,0.00019999,2]
[360040477,1746509444865,-15604.06,0.00019999,2]
[360040478,1746509444874,-15604.06,0.00019999,2]
[360040479,1746509444883,-15604.06,0.00019999,2]
[360040480,1746509444893,-13555.04058418,0.00019999,2]
[360040481,1746509444923,-748.90088247,0.00019999,2]
[360040482,1746509444934,-1300.11853335,0.00019999,2]
[360040483,1746509444944,-332.89120242,0.00019999,2]
[360040484,1746509444956,-15271.16879758,0.00019999,2]
[360040485,1746509444967,-455.83049377,0.00019999,2]
[360040486,1746509444983,-372.93615732,0.00019999,2]
[360040487,1746509445080,-462.37334891,0.00019999,2]
[360040488,1746509445089,-15604.06,0.00019999,2]
[360040489,1746509445099,-1291.14,0.00019999,2]
[360040490,1746509445109,-15604.06,0.00019999,2]
[360040491,1746509445119,-1291.14,0.00019999,2]
[360040492,1746509445128,-15604.06,0.00019999,2]
[360040493,1746509445138,-1291.14,0.00019999,2]
[360040494,1746509445147,-151.0,0.00019999,2]
[360040495,1746509445157,-15604.06,0.00019999,2]
[360040496,1746509445167,-1291.14,0.00019999,2]
[360040497,1746509445176,-15604.06,0.00019999,2]